fUST/lending_fUST_20251117
["ID","MTS","AMOUNT","RATE_DAILY","PERIOD"]
[394173994,1763352638692,-500.0,0.00024989,2]
[394173995,1763352638702,-250.0,0.00024989,2]
[394173996,1763352638712,-500.0,0.00024989,2]
[394173997,1763352638721,-500.0,0.00024989,2]
[394173998,1763352638731,-500.0,0.00024989,2]
[394173999,1763352638740,-500.0,0.00024989,2]
[394174000,1763352638750,-500.0,0.00024989,2]
[394174001,1763352638760,-500.0,0.00024989,2]
[394174002,1763352638769,-500.0,0.00024989,2]
[394174003,1763352638779,-500.0,0.00024989,2]
[394174004,1763352638788,-500.0,0.00024989,2]
[394174005,1763352638797,-500.0,0.00024989,2]
[394174006,1763352638810,-500.0,0.00024989,2]
[394174007,1763352638820,-500.0,0.00024989,2]
[394174008,1763352638829,-500.0,0.00024989,2]
[394174009,1763352638839,-500.0,0.00024989,2]
[394174010,1763352638848,-500.0,0.00024989,2]
[394174011,1763352638858,-500.0,0.00024989,2]
[394174012,1763352638868,-500.0,0.00024989,2]
[394174013,1763352638877,-500.0,0.00024989,2]
[394174014,1763352638887,-500.0,0.00024989,2]
[394174015,1763352638897,-500.0,0.00024989,2]
[394174016,1763352638907,-500.0,0.00024989,2]
[394174017,1763352638918,-500.0,0.00024989,2]
[394174018,1763352638930,-250.0,0.00024989,2]
[394174019,1763352638940,-500.0,0.00024989,2]
[394174020,1763352638950,-500.0,0.00024989,2]
[394174021,1763352638959,-500.0,0.00024989,2]
[394174022,1763352638968,-500.0,0.00024989,2]
[394174023,1763352638978,-43924.08371883,0.0002499,2]
[394174024,1763352638987,-1200.0,0.00025204,2]
[394174025,1763352638997,-893.40170925,0.00025205,2]
[394174026,1763352639072,-300.0,0.00025235,2]
[394174027,1763352639098,-300.0,0.00025235,2]
[394174028,1763352639108,-300.0,0.00025235,2]
[394174029,1763352639118,-300.0,0.00025235,2]
[394174030,1763352639128,-400.67432439,0.00025236,2]
[394174031,1763352639138,-854.0,0.00025236,2]
[394174032,1763352639150,-50000.0,0.00025236,2]
[394174033,1763352639159,-12561.3638389,0.00025237,2]
[394174034,1763352639169,-571.58606091,0.00025272,2]
[394174035,1763352639178,-251.45361596,0.00025272,2]
[394174036,1763352639188,-571.58606091,0.00025272,2]
[394174037,1763352639197,-571.58606091,0.00025272,2]
[394174038,1763352639207,-571.58606091,0.00025272,2]
[394174039,1763352639218,-571.58606091,0.00025272,2]
[394174040,1763352639228,-571.58606091,0.00025272,2]
[394174041,1763352639238,-571.58606091,0.00025272,2]
[394174042,1763352639248,-571.58606091,0.00025272,2]
[394174043,1763352639259,-571.58606091,0.00025272,2]
[394174044,1763352639267,-571.58606091,0.00025272,2]
[394174045,1763352639275,-571.58606091,0.00025272,2]
[394174046,1763352639285,-571.58606091,0.00025272,2]
[394174047,1763352639295,-571.58606091,0.00025272,2]
[394174048,1763352639305,-571.58606091,0.00025272,2]
[394174049,1763352639315,-571.58606091,0.00025272,2]
[394174050,1763352639326,-571.58606091,0.00025272,2]
[394174051,1763352639338,-571.58606091,0.00025272,2]
[394174052,1763352639351,-571.58606091,0.00025272,2]
[394174053,1763352639360,-500.90036308,0.00025273,2]
[394174054,1763352639369,-502.5065032,0.00025273,2]
[394174055,1763352639379,-502.26261043,0.00025273,2]
[394174056,1763352639388,-500.0,0.00025273,2]
[394174057,1763352639401,-500.0,0.00025273,2]
[394174058,1763352639411,-267.34034832,0.00025273,2]
[394174059,1763352639423,-502.15661401,0.00025273,2]
[394174060,1763352639434,-500.0,0.00025273,2]
[394174061,1763352639443,-501.9597338,0.00025273,2]
[394174062,1763352639453,-500.0,0.00025273,2]
[394174063,1763352639463,-500.0,0.00025273,2]
[394174064,1763352639473,-500.0,0.00025273,2]
[394174065,1763352639482,-897.01874005,0.00025756,2]
[394174066,1763352639491,-501.47392707,0.00025821,2]
[394174067,1763352639501,-1017.26996116,0.00025821,2]
[394174068,1763352639511,-593.21413216,0.00025821,2]
[394174069,1763352639521,-430.73903705,0.00025821,2]
[394174070,1763352639530,-503.94861877,0.00025821,2]
[394174071,1763352639540,-330.0,0.00025824,2]
[394174072,1763352639549,-177.16,0.00025846,3]
[394174073,1763352639558,-531.48,0.00025846,3]
[394174074,1763352639568,-636180.617682,0.00025856,2]
[394174075,1763352639577,-71023.7595908,0.00025856,2]
[394174076,1763352639587,-10146.2513701,0.00025857,2]
[394174077,1763352639596,-10146.2513701,0.00025863,2]
[394174078,1763352639606,-151.0,0.00025866,7]
[394174079,1763352639617,-151.0,0.00025866,7]
[394174080,1763352639626,-151.0,0.00025866,7]
[394174081,1763352639636,-500.0,0.00025866,2]
[394174082,1763352639646,-4849.17620165,0.00025867,2]
[394174083,1763352639655,-151.0,0.00025867,7]
[394174084,1763352639664,-156.542671,0.00025867,7]
[394174085,1763352639674,-151.0,0.00025867,7]
[394174086,1763352639683,-4849.17620164,0.00025869,2]
[394174087,1763352639692,-4849.17620164,0.0002587,2]
[394174088,1763352639702,-4849.17620164,0.00025872,2]
[394174089,1763352639711,-518.08160207,0.00025873,2]
[394174090,1763352639720,-4849.17620164,0.00025873,2]
[394174091,1763352639730,-906.0,0.00025878,7]
[394174092,1763352639740,-209.43,0.000259,7]
[394174093,1763352639749,-7144.56,0.000259,7]
[394174094,1763352639758,-151.0,0.00025952,2]
[394174095,1763352639767,-151.0,0.00025952,2]
[394174096,1763352639776,-151.0,0.00025952,2]
[394174097,1763352639785,-151.0,0.00025952,2]
[394174098,1763352639794,-151.0,0.00025952,2]
[394174099,1763352639804,-151.0,0.00025952,2]
[394174100,1763352639814,-151.0,0.00025952,2]
[394174101,1763352639824,-151.0,0.00025952,2]
[394174102,1763352639833,-151.0,0.00025952,2]
[394174103,1763352639843,-270.73879904,0.00025952,2]
[394174104,1763352639852,-206.521111,0.00025958,7]
[394174106,1763352639861,-206.521111,0.00025958,7]
[394174108,1763352639871,-206.521111,0.00025958,7]
[394174109,1763352639880,-206.521111,0.00025958,7]
[394174110,1763352639890,-111608.765071,0.00025958,2]
[394174112,1763352639900,-151.0,0.00025967,7]
[394174113,1763352639909,-151.0,0.00025967,2]
[394174114,1763352639919,-151.0,0.00025967,2]
[394174115,1763352639928,-151.0,0.00025967,2]
[394174116,1763352639937,-151.0,0.00025967,2]
[394174117,1763352639946,-151.0,0.00025967,7]
[394174118,1763352639955,-151.0,0.00025967,7]
[394174120,1763352639964,-151.0,0.00025967,7]
[394174121,1763352639973,-233.012568,0.00025967,7]
[394174122,1763352639983,-151.0,0.00025968,7]
[394174123,1763352639992,-151.0,0.00025968,2]
[394174124,1763352640001,-151.0,0.00025968,2]
[394174125,1763352640010,-151.0,0.00025968,2]
[394174126,1763352640019,-151.0,0.00025968,2]
[394174127,1763352640028,-151.0,0.00025968,7]
[394174128,1763352640039,-151.0,0.00025968,7]
[394174129,1763352640049,-151.0,0.00025968,7]
[394174130,1763352640059,-151.0,0.00025968,7]
[394174131,1763352640070,-151.0,0.00025968,7]
[394174132,1763352640080,-500.0,0.00025971,2]
[394174133,1763352640091,-502.92139257,0.00025973,2]
[394174134,1763352640101,-508.13254612,0.00025973,2]
[394174135,1763352640111,-161.01806223,0.00025973,2]
[394174136,1763352640120,-575.56467831,0.00025973,2]
[394174137,1763352640130,-500.81441983,0.00025973,2]
[394174138,1763352640140,-500.0,0.00025973,2]
[394174139,1763352640150,-500.0,0.00025973,2]
[394174140,1763352640159,-500.0,0.00025973,2]
[394174141,1763352640169,-500.0,0.00025973,2]
[394174142,1763352640179,-500.0,0.00025973,2]
[394174143,1763352640189,-500.0,0.00025973,2]
[394174144,1763352640198,-539.0,0.00026,2]
[394174145,1763352640208,-160.0,0.00026,2]
[394174146,1763352640217,-2041.59,0.00026062,3]
[394174147,1763352640227,-1203.59,0.00026062,3]
[394174148,1763352640236,-601.79,0.00026062,3]
[394174149,1763352640246,-300.9,0.00026062,3]
[394174150,1763352640255,-150.45,0.00026062,3]
[394174151,1763352640264,-451.35,0.00026062,3]
[394174152,1763352640274,-500.0,0.00026071,2]
[394174153,1763352640283,-500.0,0.00026071,2]
[394174154,1763352640293,-354.00827176,0.00026071,2]
[394174155,1763352640302,-197.929447,0.00026072,7]
[394174156,1763352640312,-197.929447,0.00026072,7]
[394174157,1763352640321,-197.929447,0.00026072,7]
[394174158,1763352640330,-197.929447,0.00026072,7]
[394174161,1763352640341,-500.0,0.00026072,2]
[394174163,1763352640351,-500.0,0.00026072,2]
[394174164,1763352640360,-500.0,0.00026072,2]
[394174166,1763352640370,-151.0,0.00026072,7]
[394174167,1763352640381,-271.67134,0.00026072,7]
[394174168,1763352640390,-151.0,0.00026072,7]
[394174169,1763352640401,-271.67134,0.00026072,7]
[394174170,1763352640411,-271.67134,0.00026072,7]
[394174171,1763352640421,-271.67134,0.00026072,7]
[394174172,1763352640430,-151.0,0.00026072,7]
[394174173,1763352640440,-502.44158823,0.00026073,2]
[394174174,1763352640449,-501.81896579,0.00026073,2]
[394174175,1763352640459,-500.0,0.00026073,2]
[394174176,1763352640468,-501.98604669,0.00026073,2]
[394174177,1763352640482,-495.28841905,0.00026073,2]
[394174178,1763352640491,-500.0,0.00026073,2]
[394174179,1763352640500,-500.0,0.00026073,2]
[394174180,1763352640509,-150.0,0.00026073,2]
[394174181,1763352640519,-151.0,0.00026073,7]
[394174182,1763352640528,-271.67134,0.00026073,7]
[394174183,1763352640538,-151.0,0.00026073,7]
[394174184,1763352640547,-271.67134,0.00026073,7]
[394174185,1763352640556,-271.67134,0.00026073,7]
[394174186,1763352640565,-271.67134,0.00026073,7]
[394174187,1763352640574,-197.929447,0.00026078,7]
[394174188,1763352640584,-197.929447,0.00026078,7]
[394174189,1763352640593,-197.929447,0.00026078,7]
[394174190,1763352640602,-197.929447,0.00026078,7]
[394174191,1763352640611,-1000.0,0.00026078,2]
[394174192,1763352640621,-1000.0,0.00026078,2]
[394174193,1763352640631,-1000.0,0.00026078,2]
[394174194,1763352640713,-1000.0,0.00026078,2]
[394174195,1763352640723,-1016.95258603,0.00026078,2]
[394174196,1763352640733,-333.64945345,0.0002608,2]
[394174197,1763352640743,-29068.1140318,0.0002608,2]
[394174198,1763352640752,-500.0,0.0002614,2]
[394174199,1763352640762,-500.0,0.00026414,2]
[394174200,1763352640771,-1004.49475929,0.00026521,2]
[394174201,1763352640780,-1001.94711302,0.00026521,2]
[394174202,1763352640789,-436.00854889,0.00026521,2]
[394174203,1763352640799,-1041.04800509,0.00026521,2]
[394174204,1763352640808,-1000.0,0.00026521,2]
[394174205,1763352640818,-260.0,0.00026548,2]
[394174206,1763352640827,-1000.0,0.00026621,2]
[394174207,1763352640837,-306.03392381,0.00026621,2]
[394174208,1763352640847,-1000.0,0.00026621,2]
[394174209,1763352640856,-300.0,0.00026621,2]
[394174210,1763352640866,-26.97035397,0.00026676,2]
[394174211,1763352640875,-500.0,0.00026688,2]
[394174212,1763352640884,-177.0,0.00026858,2]
[394174213,1763352640894,-500.0,0.00026962,2]
[394174214,1763352640903,-206.521111,0.00026962,7]
[394174215,1763352640912,-206.521111,0.00026962,7]
[394174216,1763352640922,-206.521111,0.00026962,7]
[394174217,1763352640932,-206.521111,0.00026962,7]
[394174218,1763352640942,-500.0,0.00026978,2]
[394174219,1763352640952,-151.0,0.00026978,7]
[394174220,1763352640963,-155.885854,0.00026978,7]
[394174221,1763352640973,-197.929447,0.00026979,7]
[394174222,1763352640984,-197.929447,0.00026979,7]
[394174223,1763352640996,-197.929447,0.00026979,7]
[394174224,1763352641006,-197.929447,0.00026979,7]
[394174225,1763352641015,-151.0,0.00026979,7]
[394174226,1763352641026,-271.67134,0.00026979,7]
[394174227,1763352641036,-151.0,0.00026979,7]
[394174228,1763352641046,-271.67134,0.00026979,7]
[394174229,1763352641057,-271.67134,0.00026979,7]
[394174230,1763352641067,-271.67134,0.00026979,7]
[394174231,1763352641078,-151.0,0.00026979,2]
[394174232,1763352641091,-151.0,0.00026979,2]
[394174233,1763352641103,-151.0,0.00026979,2]
[394174234,1763352641115,-300.480475,0.00026979,2]
[394174235,1763352641125,-151.0,0.00026979,7]
[394174236,1763352641135,-151.0,0.00026979,7]
[394174237,1763352641145,-151.0,0.00026979,7]
[394174238,1763352641154,-197.929447,0.0002698,7]
[394174239,1763352641164,-197.929447,0.0002698,7]
[394174240,1763352641173,-197.929447,0.0002698,7]
[394174241,1763352641183,-197.929447,0.0002698,7]
[394174242,1763352641193,-151.0,0.0002698,7]
[394174243,1763352641202,-271.67134,0.0002698,7]
[394174244,1763352641211,-151.0,0.0002698,7]
[394174245,1763352641221,-271.67134,0.0002698,7]
[394174246,1763352641230,-271.67134,0.0002698,7]
[394174247,1763352641240,-271.67134,0.0002698,7]
[394174248,1763352641249,-613.0,0.00027,2]
[394174249,1763352641258,-362.7,0.00027,14]
[394174250,1763352641268,-1500.0,0.00027068,2]
[394174251,1763352641277,-360.0,0.00027096,2]
[394174252,1763352641286,-1582.11436431,0.00027168,2]
[394174253,1763352641296,-1500.0,0.00027168,2]
[394174254,1763352641306,-450.0,0.00027168,2]
[394174255,1763352641317,-354.32,0.00027216,3]
[394174256,1763352641327,-500.0,0.00027236,2]
[394174257,1763352641337,-200.0,0.00027331,2]
[394174258,1763352641350,-203.0,0.00027331,2]
[394174259,1763352641359,-420.0,0.00027331,2]
[394174260,1763352641369,-159.896851,0.00027397,7]
[394174261,1763352641381,-500.0,0.00027397,2]
[394174262,1763352641390,-500.0,0.00027397,2]
[394174263,1763352641400,-500.0,0.00027397,2]
[394174264,1763352641410,-500.0,0.00027397,2]
[394174265,1763352641420,-500.0,0.00027397,2]
[394174266,1763352641430,-500.0,0.00027397,2]
[394174267,1763352641441,-500.0,0.00027397,2]
[394174268,1763352641458,-500.0,0.00027397,2]
[394174269,1763352641474,-500.0,0.00027397,2]
[394174270,1763352641491,-500.0,0.00027397,2]
[394174271,1763352641504,-500.0,0.00027397,2]
[394174272,1763352641518,-500.0,0.00027397,2]
[394174273,1763352641533,-221.53429644,0.00027397,2]
[394174274,1763352641548,-151.0,0.00027397,7]
[394174275,1763352641563,-151.0,0.00027397,7]
[394174276,1763352641579,-185.477875,0.00027397,7]
[394174277,1763352641594,-151.0,0.00027397,7]
[394174278,1763352641607,-151.0,0.00027397,7]
[394174279,1763352641621,-151.0,0.00027397,7]
[394174280,1763352641636,-151.0,0.00027397,7]
[394174281,1763352641650,-151.0,0.00027397,7]
[394174282,1763352641664,-151.0,0.00027397,7]
[394174283,1763352641677,-151.0,0.00027397,7]
[394174284,1763352641691,-151.0,0.00027397,7]
[394174285,1763352641701,-151.0,0.00027397,7]
[394174286,1763352641714,-151.0,0.00027397,7]
[394174287,1763352641727,-151.0,0.00027397,7]
[394174288,1763352641740,-151.0,0.00027397,7]
[394174289,1763352641754,-151.0,0.00027397,7]
[394174290,1763352641769,-252.058813,0.00027397,7]
[394174291,1763352641783,-154.477104,0.00027397,7]
[394174292,1763352641798,-288.464106,0.00027397,7]
[394174293,1763352641812,-151.0,0.00027397,7]
[394174294,1763352641823,-151.0,0.00027397,7]
[394174295,1763352641834,-151.0,0.00027397,7]
[394174296,1763352641846,-153.79913,0.00027397,7]
[394174297,1763352641861,-151.0,0.00027397,7]
[394174298,1763352641877,-153.19767,0.00027397,7]
[394174299,1763352641889,-151.0,0.00027397,7]
[394174300,1763352641900,-157.171853,0.00027397,7]
[394174301,1763352641912,-152.058896,0.00027397,7]
[394174302,1763352641925,-151.0,0.00027397,7]
[394174303,1763352641936,-151.0,0.00027397,7]
[394174304,1763352641947,-153.844267,0.00027397,7]
[394174305,1763352641958,-151.0,0.00027397,7]
[394174306,1763352641970,-151.0,0.00027397,7]
[394174307,1763352641981,-151.0,0.00027397,7]
[394174308,1763352641992,-151.0,0.00027397,7]
[394174309,1763352642004,-244.989443,0.00027397,7]
[394174310,1763352642015,-151.0,0.00027397,7]
[394174311,1763352642026,-151.0,0.00027397,7]
[394174312,1763352642038,-151.0,0.00027397,7]
[394174313,1763352642050,-151.0,0.00027397,7]
[394174314,1763352642063,-153.593916,0.00027397,7]
[394174315,1763352642077,-251.495585,0.00027397,7]
[394174316,1763352642089,-251.495585,0.00027397,7]
[394174317,1763352642102,-251.495585,0.00027397,7]
[394174318,1763352642113,-251.495585,0.00027397,7]
[394174319,1763352642126,-251.495585,0.00027397,7]
[394174320,1763352642138,-251.495585,0.00027397,7]
[394174321,1763352642151,-251.495585,0.00027397,7]
[394174322,1763352642162,-251.495585,0.00027397,7]
[394174323,1763352642175,-251.495585,0.00027397,7]
[394174324,1763352642188,-251.495585,0.00027397,7]
[394174325,1763352642200,-251.495585,0.00027397,7]
[394174326,1763352642212,-251.495585,0.00027397,7]
[394174327,1763352642225,-251.495585,0.00027397,7]
[394174328,1763352642237,-251.495585,0.00027397,7]
[394174329,1763352642249,-251.495585,0.00027397,7]
[394174330,1763352642262,-251.495585,0.00027397,7]
[394174331,1763352642275,-151.0,0.00027397,7]
[394174332,1763352642286,-153.691442,0.00027397,7]
[394174333,1763352642299,-151.0,0.00027397,7]
[394174334,1763352642312,-151.0,0.00027397,7]
[394174335,1763352642323,-151.0,0.00027397,7]
[394174336,1763352642333,-151.0,0.00027397,7]
[394174337,1763352642344,-169.147943,0.00027397,7]
[394174338,1763352642354,-151.0,0.00027397,7]
[394174339,1763352642363,-151.0,0.00027397,7]
[394174340,1763352642373,-151.0,0.00027397,7]
[394174341,1763352642489,-151.0,0.00027397,7]
[394174342,1763352642498,-151.0,0.00027397,7]
[394174343,1763352642508,-151.0,0.00027397,7]
[394174344,1763352642517,-151.0,0.00027397,7]
[394174345,1763352642527,-151.0,0.00027397,7]
[394174346,1763352642536,-151.0,0.00027397,7]
[394174347,1763352642546,-151.0,0.00027397,7]
[394174348,1763352642555,-151.0,0.00027397,7]
[394174349,1763352642564,-151.0,0.00027397,7]
[394174350,1763352642574,-151.0,0.00027397,7]
[394174351,1763352642583,-151.0,0.00027397,7]
[394174352,1763352642592,-151.0,0.00027397,7]
[394174353,1763352642602,-151.0,0.00027397,7]
[394174354,1763352642611,-151.0,0.00027397,7]
[394174355,1763352642620,-151.0,0.00027397,7]
[394174356,1763352642630,-151.0,0.00027397,7]
[394174357,1763352642641,-203.592751,0.00027397,7]
[394174358,1763352642652,-151.0,0.00027397,7]
[394174359,1763352642661,-151.0,0.00027397,7]
[394174360,1763352642671,-151.0,0.00027397,7]
[394174361,1763352642682,-151.0,0.00027397,7]
[394174362,1763352642691,-151.0,0.00027397,7]
[394174363,1763352642703,-202.857609,0.00027397,7]
[394174364,1763352642712,-153.859045,0.00027397,7]
[394174365,1763352642723,-151.0,0.00027397,7]
[394174366,1763352642732,-151.0,0.00027397,7]
[394174367,1763352642741,-151.0,0.00027397,7]
[394174368,1763352642751,-151.0,0.00027397,7]
[394174370,1763352642760,-151.0,0.00027397,7]
[394174371,1763352642769,-151.0,0.00027397,7]
[394174372,1763352642779,-151.0,0.00027397,7]
[394174373,1763352642788,-151.0,0.00027397,7]
[394174374,1763352642797,-186.367292,0.00027397,7]
[394174375,1763352642807,-186.367292,0.00027397,7]
[394174376,1763352642816,-186.367292,0.00027397,7]
[394174377,1763352642825,-186.367292,0.00027397,7]
[394174378,1763352642834,-186.367292,0.00027397,7]
[394174379,1763352642843,-186.367292,0.00027397,7]
[394174380,1763352642853,-186.367292,0.00027397,7]
[394174381,1763352642862,-186.367292,0.00027397,7]
[394174382,1763352642871,-186.367292,0.00027397,7]
[394174383,1763352642880,-186.367292,0.00027397,7]
[394174384,1763352642889,-186.367292,0.00027397,7]
[394174385,1763352642899,-186.367292,0.00027397,7]
[394174386,1763352642908,-186.367292,0.00027397,7]
[394174387,1763352642918,-186.367292,0.00027397,7]
[394174388,1763352642927,-186.367292,0.00027397,7]
[394174389,1763352642936,-151.0,0.00027397,7]
[394174390,1763352642945,-186.367292,0.00027397,7]
[394174391,1763352642954,-151.0,0.00027397,7]
[394174392,1763352642963,-151.0,0.00027397,7]
[394174393,1763352642972,-155.218597,0.00027397,7]
[394174394,1763352642981,-152.736006,0.00027397,7]
[394174395,1763352642991,-153.060795,0.00027397,7]
[394174396,1763352643000,-151.401774,0.00027397,7]
[394174397,1763352643009,-151.0,0.00027397,7]
[394174398,1763352643018,-151.0,0.00027397,7]
[394174400,1763352643027,-151.0,0.00027397,7]
[394174401,1763352643036,-151.0,0.00027397,7]
[394174402,1763352643045,-151.0,0.00027397,7]
[394174403,1763352643054,-151.0,0.00027397,7]
[394174404,1763352643063,-156.759598,0.00027397,7]
[394174405,1763352643072,-151.0,0.00027397,7]
[394174406,1763352643082,-151.0,0.00027397,7]
[394174407,1763352643091,-271.274429,0.00027397,7]
[394174408,1763352643100,-151.0,0.00027397,7]
[394174409,1763352643110,-151.0,0.00027397,7]
[394174410,1763352643120,-151.0,0.00027397,7]
[394174411,1763352643130,-151.0,0.00027397,7]
[394174412,1763352643141,-151.0,0.00027397,7]
[394174413,1763352643154,-160.771968,0.00027397,7]
[394174414,1763352643164,-151.0,0.00027397,7]
[394174415,1763352643174,-151.50249,0.00027397,7]
[394174416,1763352643184,-243.173132,0.00027397,7]
[394174417,1763352643194,-171.715225,0.00027397,7]
[394174418,1763352643204,-151.0,0.00027397,7]
[394174419,1763352643213,-151.0,0.00027397,7]
[394174420,1763352643223,-151.0,0.00027397,7]
[394174421,1763352643232,-151.0,0.00027397,7]
[394174422,1763352643241,-151.0,0.00027397,7]
[394174424,1763352643251,-151.0,0.00027397,7]
[394174426,1763352643260,-152.836371,0.00027397,7]
[394174428,1763352643270,-151.0,0.00027397,7]
[394174429,1763352643279,-151.0,0.00027397,7]
[394174431,1763352643288,-151.0,0.00027397,7]
[394174433,1763352643298,-151.0,0.00027397,7]
[394174434,1763352643307,-151.0,0.00027397,7]
[394174436,1763352643316,-151.0,0.00027397,7]
[394174437,1763352643325,-151.0,0.00027397,7]
[394174439,1763352643335,-151.0,0.00027397,7]
[394174441,1763352643347,-151.0,0.00027397,7]
[394174443,1763352643356,-151.0,0.00027397,7]
[394174444,1763352643365,-271.145735,0.00027397,7]
[394174446,1763352643374,-252.557625,0.00027397,7]
[394174448,1763352643385,-252.557625,0.00027397,7]
[394174450,1763352643394,-252.557625,0.00027397,7]
[394174451,1763352643404,-252.557625,0.00027397,7]
[394174453,1763352643414,-252.557625,0.00027397,7]
[394174455,1763352643423,-252.557625,0.00027397,7]
[394174457,1763352643433,-252.557625,0.00027397,7]
[394174458,1763352643442,-252.557625,0.00027397,7]
[394174460,1763352643451,-252.557625,0.00027397,7]
[394174462,1763352643461,-252.557625,0.00027397,7]
[394174464,1763352643470,-252.557625,0.00027397,7]
[394174465,1763352643479,-252.557625,0.00027397,7]
[394174467,1763352643488,-252.557625,0.00027397,7]
[394174469,1763352643498,-252.557625,0.00027397,7]
[394174471,1763352643507,-252.557625,0.00027397,7]
[394174472,1763352643515,-252.557625,0.00027397,7]
[394174474,1763352643524,-151.0,0.00027397,7]
[394174476,1763352643534,-151.0,0.00027397,7]
[394174478,1763352643543,-151.0,0.00027397,7]
[394174480,1763352643552,-151.0,0.00027397,7]
[394174481,1763352643561,-151.0,0.00027397,7]
[394174483,1763352643570,-151.0,0.00027397,7]
[394174485,1763352643579,-151.0,0.00027397,7]
[394174487,1763352643589,-151.0,0.00027397,7]
[394174489,1763352643598,-280.164424,0.00027397,7]
[394174490,1763352643607,-498.608934,0.00027397,7]
[394174492,1763352643616,-498.608934,0.00027397,7]
[394174494,1763352643625,-498.608934,0.00027397,7]
[394174496,1763352643634,-498.608934,0.00027397,7]
[394174498,1763352643644,-498.608934,0.00027397,7]
[394174499,1763352643653,-498.608934,0.00027397,7]
[394174501,1763352643662,-498.608934,0.00027397,7]
[394174503,1763352643671,-498.608934,0.00027397,7]
[394174505,1763352643681,-498.608934,0.00027397,7]
[394174506,1763352643690,-498.608934,0.00027397,7]
[394174509,1763352643699,-498.608934,0.00027397,7]
[394174512,1763352643708,-498.608934,0.00027397,7]
[394174515,1763352643718,-151.0,0.00027397,7]
[394174516,1763352643728,-498.608934,0.00027397,7]
[394174518,1763352643737,-153.459886,0.00027397,7]
[394174520,1763352643747,-498.608934,0.00027397,7]
[394174522,1763352643758,-498.608934,0.00027397,7]
[394174524,1763352643767,-498.608934,0.00027397,7]
[394174526,1763352643776,-151.0,0.00027397,7]
[394174527,1763352643785,-151.0,0.00027397,7]
[394174529,1763352643795,-151.0,0.00027397,7]
[394174531,1763352643804,-151.0,0.00027397,7]
[394174533,1763352643814,-151.0,0.00027397,7]
[394174535,1763352643824,-153.48472,0.00027397,7]
[394174537,1763352643833,-151.0,0.00027397,7]
[394174539,1763352643842,-151.0,0.00027397,7]
[394174540,1763352643851,-151.0,0.00027397,7]
[394174542,1763352643860,-151.0,0.00027397,7]
[394174544,1763352643869,-151.0,0.00027397,7]
[394174546,1763352643878,-151.0,0.00027397,7]
[394174548,1763352643887,-151.0,0.00027397,7]
[394174550,1763352643896,-151.0,0.00027397,7]
[394174551,1763352643906,-151.0,0.00027397,7]
[394174553,1763352643915,-151.0,0.00027397,7]
[394174555,1763352643925,-151.0,0.00027397,7]
[394174557,1763352643934,-151.0,0.00027397,7]
[394174559,1763352643943,-157.1355,0.00027397,7]
[394174560,1763352643952,-151.0,0.00027397,7]
[394174562,1763352643961,-151.0,0.00027397,7]
[394174564,1763352643970,-151.0,0.00027397,7]
[394174566,1763352643979,-151.0,0.00027397,7]
[394174567,1763352643988,-151.0,0.00027397,7]
[394174568,1763352643997,-151.0,0.00027397,7]